bitfinex-derivatives/quotes_ETHF0:USTF0_20260226
["timestamp","ask_amount","ask_price","bid_price","bid_amount"]
[1772079991094,5.60135289,2064.7,2064.1,3.26075886]
[1772079991292,4.58270767,2064.9,2064.1,3.26075886]
[1772079991492,6.01105196,2064.8,2064.1,3.26075886]
[1772079991695,0.50912109,2064.6,2064.1,3.18613094]
[1772079991896,0.50912109,2064.6,2064.1,2.28413095]
[1772080001399,5.61372443,2064.5,2064.1,2.28413095]
[1772080001600,0.50912109,2064.6,2064.1,2.28413095]
[1772080001790,5.61367955,2064.5,2064.1,2.28413095]
[1772080001993,0.50912109,2064.6,2064.1,2.28413095]
[1772080002298,5.61361671,2064.5,2064.1,2.28413095]
[1772080002489,0.50912109,2064.6,2064.1,2.28413095]
[1772080002694,5.61372073,2064.5,2064.1,2.28413095]
[1772080002894,0.50912109,2064.6,2064.1,2.28413095]
[1772080003193,5.61372971,2064.5,2064.1,2.28413095]
[1772080003390,0.50912109,2064.6,2064.1,2.28413095]
[1772080003597,5.61419309,2064.5,2064.1,2.28413095]
[1772080003895,1.42845019,2064.7,2064.1,2.28413095]
[1772080004097,7.04262548,2064.6,2064.1,2.28413095]
[1772080004296,5.61417529,2064.5,2064.1,2.28413095]
[1772080006303,6.99096563,2064.5,2064.1,2.28413095]
[1772080006500,1.37679034,2064.5,2064.1,2.28413095]
[1772080006802,1.36610425,2064.6,2064.1,2.28413095]
[1772080007100,5.61516924,2064.5,2064.1,2.28413095]
[1772080007296,4.06193514,2064.8,2064.1,2.28413095]
[1772080007496,7.3817691,2064.7,2064.1,2.28413095]
[1772080007694,6.97153175,2064.6,2064.1,2.28413095]
[1772080007899,6.97153175,2064.5,2064.1,2.28413095]
[1772080008098,1.35639748,2064.5,2064.1,2.28413095]
[1772080008303,1.34729541,2064.6,2064.1,2.28413095]
[1772080008602,5.61511745,2064.5,2064.1,2.28413095]
[1772080008803,1.34729541,2064.6,2064.1,2.28413095]
[1772080009004,5.61511745,2064.5,2064.1,2.28413095]
[1772080009201,1.34729541,2064.6,2064.1,2.28413095]
[1772080009406,5.61511867,2064.5,2064.1,2.28413095]
[1772080009609,1.34729541,2064.6,2064.1,2.28413095]
[1772080009805,6.95286379,2064.5,2064.1,2.28413095]
[1772080010006,1.33774512,2064.5,2064.1,2.28413095]
[1772080015109,1.33323098,2064.6,2064.1,2.28413095]
[1772080015410,5.61563081,2064.5,2064.1,2.28413095]
[1772080015607,1.33323098,2064.6,2064.1,2.28413095]
[1772080015810,5.61562897,2064.5,2064.1,2.28413095]
[1772080016001,1.33323098,2064.6,2064.1,2.28413095]
[1772080016202,5.61577929,2064.5,2064.1,2.28413095]
[1772080016406,1.33323098,2064.6,2064.1,2.28413095]
[1772080016606,5.61577786,2064.5,2064.1,2.28413095]
[1772080016806,1.33323098,2064.6,2064.1,2.28413095]
[1772080017106,5.61577786,2064.5,2064.1,2.28413095]
[1772080017307,1.33323098,2064.6,2064.1,2.28413095]
[1772080017507,5.61596296,2064.5,2064.1,2.28413095]
[1772080017708,1.33323098,2064.6,2064.1,2.28413095]
[1772080017908,5.61596296,2064.5,2064.1,2.28413095]
[1772080018107,1.33323098,2064.6,2064.1,2.28413095]
[1772080018309,5.61618803,2064.5,2064.1,2.28413095]
[1772080018604,4.06193514,2064.8,2064.1,2.28413095]
[1772080018912,6.02650106,2064.7,2064.1,2.28413095]
[1772080019112,6.02650106,2064.6,2064.1,2.28413095]
[1772080019312,5.61618668,2064.5,2064.1,2.28413095]
[1772080019608,1.28455189,2064.2,2063.7,2.88379002]
[1772080019808,5.34648703,2064.4,2063.7,2.88379002]
[1772080020013,5.6171652,2064.3,2063.7,2.88379002]
[1772080020213,8.227,2064.5,2063.7,2.88379002]
[1772080020405,6.02771457,2064.4,2063.7,2.88379002]
[1772080020609,5.61731269,2064.3,2063.7,2.88379002]
[1772080020810,5.61735481,2064.2,2063.7,2.88379002]
[1772080021013,13.57142291,2064.5,2063.7,2.88379002]
[1772080021213,6.02782879,2064.4,2063.7,2.88379002]
[1772080021415,5.61741795,2064.3,2063.7,2.88379002]
[1772080021612,9.50948777,2064.5,2063.7,2.88379002]
[1772080021913,1.27377556,2064.2,2063.6,2.88379002]
[1772080022113,1.27377556,2064.0,2063.6,2.88379002]
[1772080022414,5.61169478,2064.1,2063.6,2.88379002]
[1772080022415,1.23024094,2064.3,2063.6,2.88379002]
[1772080022615,6.8385102,2064.2,2063.6,2.88379002]
[1772080022814,5.60826926,2064.1,2063.6,2.88379002]
[1772080023015,1.23024094,2064.2,2063.6,2.88379002]
[1772080023313,1.23102695,2064.0,2063.6,2.88379002]
[1772080023617,1.22170041,2064.1,2063.6,2.88379002]
[1772080024316,1.22170041,2064.1,2063.2,2.88379002]
[1772080024628,1.11267492,2063.9,2063.2,2.88379002]
[1772080025516,1.10443239,2064.0,2063.2,2.88379002]
[1772080028121,4.06193514,2064.3,2063.3,1.18359656]
[1772080028122,1.11819074,2064.2,2063.3,1.18359656]
[1772080028418,1.10783119,2064.2,2063.4,2.88379002]
[1772080029017,1.10783119,2064.2,2063.3,1.18359656]
[1772080029018,1.18359656,2063.7,2063.3,2.88379002]
[1772080029222,1.18328383,2063.6,2062.8,2.88379002]
[1772080029819,2.36688039,2063.6,2062.8,2.88379002]
[1772080030622,1.18328383,2063.6,2062.8,2.88379002]
[1772080032332,1.15493224,2063.4,2062.8,2.88379002]
[1772080033519,1.14719658,2063.8,2062.8,2.88379002]
[1772080033721,5.6211477,2063.7,2063.0,2.88379002]
[1772080033925,1.14719658,2063.8,2063.0,2.88379002]
[1772080039027,1.09964962,2063.6,2063.0,2.88379002]
[1772080039232,1.09964962,2063.4,2063.0,2.88379002]
[1772080039428,1.09964962,2063.4,2063.0,0.99359537]
[1772080040832,2.87628834,2063.2,2062.8,2.88379002]
[1772080041033,4.0598849,2063.3,2062.8,2.88379002]
[1772080041331,2.87628834,2063.3,2062.8,2.88379002]
[1772080041831,5.2455317,2063.9,2062.5,2.88379002]
[1772080041832,4.0598849,2062.9,2062.5,2.88379002]
[1772080042031,2.87628834,2062.8,2062.1,2.88379002]
[1772080042832,2.87628834,2062.4,2062.1,2.88379002]
[1772080043037,0.00501645,2062.4,2062.1,2.88920535]
[1772080044431,11.13728834,2062.9,2062.1,2.88920535]
[1772080044734,2.87628834,2062.8,2062.1,2.88920535]
[1772080046236,11.02242853,2062.9,2062.1,2.88920535]
[1772080046431,2.76142853,2062.9,2062.1,2.88920535]
[1772080046834,2.76142853,2063.6,2062.9,2.64680838]
[1772080048132,2.76142853,2063.8,2062.9,2.64680838]
[1772080048335,2.76142853,2063.8,2063.1,2.64680838]
[1772080049038,2.76142853,2064.1,2063.3,2.64680838]
[1772080050635,2.76142853,2064.1,2063.5,2.64680838]
[1772080050838,2.76142853,2064.2,2063.5,2.64680838]
[1772080053540,2.64227027,2064.5,2063.7,2.82776564]
[1772080053737,2.64227027,2064.5,2063.7,2.83285509]
[1772080054442,2.64227027,2064.5,2063.9,2.82776564]
[1772080057844,2.64227027,2064.5,2063.7,2.83285509]
[1772080064155,2.64227027,2064.5,2063.7,0.00508945]
[1772080064349,2.64227027,2064.5,2063.7,2.83285509]
[1772080070158,2.64227027,2064.6,2063.7,2.83285509]
[1772080076261,2.73267552,2064.4,2063.7,2.83285509]
[1772080078360,5.68324241,2064.3,2063.7,2.83285509]
[1772080078559,2.73267552,2064.4,2063.7,2.83285509]
[1772080078760,5.68344481,2064.3,2063.7,2.83285509]
[1772080079058,2.73267552,2064.4,2063.7,2.83285509]
[1772080079258,5.68344504,2064.3,2063.7,2.83285509]
[1772080079462,2.73267552,2064.4,2063.7,2.83285509]
[1772080079667,5.68511445,2064.3,2063.7,2.83285509]
[1772080079863,2.73267552,2064.4,2063.7,2.83285509]
[1772080080163,5.68511445,2064.3,2063.7,2.83285509]
[1772080080358,2.73267552,2064.4,2063.7,2.83285509]
[1772080080559,5.68592922,2064.3,2063.7,2.83285509]
[1772080080766,2.73267552,2064.4,2063.7,2.83285509]
[1772080080962,2.73267552,2064.2,2063.7,2.83285509]
[1772080085269,2.73267552,2064.3,2063.7,2.83285509]
[1772080088671,4.06193514,2064.5,2063.7,2.83285509]
[1772080088874,3.14277875,2064.4,2063.7,2.83285509]
[1772080089072,5.68665611,2064.3,2063.7,2.83285509]
[1772080089273,2.73267552,2064.4,2063.7,2.83285509]
[1772080089474,5.68665174,2064.3,2063.7,2.83285509]
[1772080089767,6.79461066,2064.6,2063.7,2.83285509]
[1772080089971,8.41892528,2064.5,2063.7,2.83285509]
[1772080090273,6.79461066,2064.7,2063.7,2.83285509]
[1772080090473,8.82820251,2064.6,2063.7,2.83285509]
[1772080090668,5.68551338,2064.5,2063.7,2.83285509]
[1772080090868,1.87657073,2064.6,2063.7,2.83285509]
[1772080091172,5.63935495,2064.5,2063.7,2.83285509]
[1772080091374,1.87657073,2064.6,2063.7,2.83285509]
[1772080091674,5.63874462,2064.5,2063.7,2.83285509]
[1772080091972,1.87657073,2064.6,2063.7,2.83285509]
[1772080092267,5.63874439,2064.5,2063.7,2.83285509]
[1772080092467,1.87657073,2064.6,2063.7,2.83285509]
[1772080092670,5.6382575,2064.5,2063.7,2.83285509]
[1772080092870,1.87657073,2064.6,2063.7,2.83285509]
[1772080093172,2.66035106,2064.8,2063.8,2.60097287]
[1772080093363,5.63680647,2064.7,2063.8,2.60097287]
[1772080093567,2.66035106,2064.8,2063.8,2.60097287]
[1772080093766,5.63680485,2064.7,2063.8,2.60097287]
[1772080093970,2.66035106,2064.8,2064.0,2.60097287]
[1772080094272,5.63674112,2064.7,2064.0,2.60097287]
[1772080094480,2.66035106,2064.8,2064.0,2.60097287]
[1772080094870,2.64799334,2064.6,2064.0,2.60097287]
[1772080095273,2.64836073,2064.8,2064.0,2.60097287]
[1772080095473,5.63464615,2064.7,2064.0,2.60097287]
[1772080095770,2.64836073,2064.8,2064.0,2.60097287]
[1772080095977,8.27849373,2064.7,2064.0,2.60097287]
[1772080096168,2.64378206,2064.7,2064.0,2.60097287]
[1772080108279,2.6239168,2064.9,2064.0,2.60097287]
[1772080108675,2.61851574,2065.3,2064.4,2.60676866]
[1772080108874,2.61851574,2065.3,2064.6,2.60676866]
[1772080110581,2.59070856,2065.6,2064.6,2.60676866]
[1772080110780,2.59070856,2065.4,2064.6,2.60676866]
[1772080113871,2.53294823,2065.6,2064.6,2.60676866]
[1772080116487,2.55114139,2065.4,2064.6,2.60676866]
[1772080117783,2.55080198,2065.3,2064.6,2.60676866]
[1772080120192,2.55080198,2065.3,2064.5,9.73583112]
[1772080121894,2.55080198,2065.3,2064.6,2.73583112]
[1772080123994,2.5568446,2065.2,2064.6,2.73583112]
[1772080126700,2.56357483,2065.4,2064.6,2.73583112]
[1772080132604,2.58084863,2065.6,2064.6,2.73583112]
[1772080132806,5.56192645,2065.5,2064.6,2.73583112]
[1772080133002,2.58084863,2065.6,2064.6,2.73583112]
[1772080136312,2.58084863,2065.6,2064.7,2.49526483]
[1772080147318,2.58084863,2065.6,2064.9,2.49526483]
[1772080149320,2.52120462,2065.5,2064.9,2.49526483]
[1772080149515,2.52120462,2065.4,2064.7,2.49526483]
[1772080149713,2.52120462,2064.8,2064.3,2.49526483]
[1772080151419,2.52120462,2064.8,2064.1,2.49526483]
[1772080152425,1.1816693,2064.7,2063.9,9.47826483]
[1772080152627,2.52120462,2064.6,2063.9,9.47826483]
[1772080152829,2.52120462,2064.6,2064.0,2.49526483]
[1772080155525,2.52120462,2064.6,2064.1,2.49526483]
[1772080158223,2.52120462,2064.6,2063.9,9.47826483]
[1772080158726,2.52120462,2064.6,2064.0,2.49526483]
[1772080159728,2.52120462,2064.6,2064.1,2.49526483]
[1772080160227,2.52120462,2065.0,2064.1,2.49526483]
[1772080161125,2.51527638,2064.8,2064.1,2.49526483]
[1772080163322,2.51538563,2064.4,2063.7,0.00508945]
[1772080163527,2.51538563,2064.4,2063.7,2.50035428]
[1772080165424,2.51553584,2064.5,2063.9,2.49526483]
[1772080166534,2.4858538,2064.6,2063.9,2.49526483]
[1772080167334,2.48566932,2064.8,2063.9,2.49526483]
[1772080167635,2.48566932,2064.8,2064.1,2.58763669]
[1772080167832,3.66733862,2064.8,2064.1,2.58763669]
[1772080168133,2.48566932,2064.7,2064.1,2.58763669]
[1772080168733,8.231,2065.1,2064.1,2.58763669]
[1772080168734,3.67684876,2065.0,2064.1,2.58763669]
[1772080168930,2.49517946,2065.0,2064.3,2.58763669]
[1772080171840,2.50182119,2064.9,2064.3,2.58763669]
[1772080173242,2.51655067,2065.1,2064.3,2.58763669]
[1772080176243,2.51655067,2065.1,2064.5,2.59212826]
[1772080178646,2.54911836,2065.2,2064.5,2.59212826]
[1772080178947,2.54911836,2065.3,2064.5,2.59212826]
[1772080179538,2.54893015,2065.1,2064.5,2.59212826]
[1772080181150,2.56916748,2065.3,2064.5,2.59212826]
[1772080181541,2.56897345,2065.1,2064.5,2.59212826]
[1772080190047,2.55876422,2065.2,2064.5,2.59212826]
[1772080191454,13.45123137,2065.6,2064.5,2.59212826]
[1772080191755,2.58207134,2065.4,2064.5,2.59212826]
[1772080192546,2.54045429,2065.3,2064.5,2.59212826]
[1772080198254,2.55249194,2065.1,2064.5,2.59212826]
[1772080202157,2.5445022,2064.9,2064.1,2.72031158]
[1772080203263,2.1568222,2064.9,2064.1,2.72031158]
[1772080203559,2.15937055,2064.7,2064.1,2.72031158]
[1772080210659,4.05056207,2065.1,2064.1,2.72031158]
[1772080210660,1.9214814,2065.1,2064.1,2.72031158]
[1772080212961,10.15243885,2065.2,2064.1,2.72031158]
[1772080213160,1.94843885,2065.2,2064.3,2.72031158]
[1772080213358,1.94843885,2065.2,2064.4,2.72031158]
[1772080214958,1.94782118,2065.3,2064.4,2.72031158]
[1772080215159,1.94782118,2065.4,2064.4,2.72031158]
[1772080223965,1.95688916,2065.6,2064.4,2.72031158]
[1772080227763,1.9602345,2065.8,2065.0,2.63077079]
[1772080229864,1.9602345,2065.8,2064.9,6.945]
[1772080229865,1.9558811,2066.2,2065.2,2.63077079]
[1772080230072,1.9558811,2066.2,2065.2,2.63497764]
[1772080230960,1.965949,2066.0,2065.2,2.63497764]
[1772080231972,14.22884311,2066.6,2065.4,2.63077079]
[1772080231973,1.96606517,2066.2,2065.4,2.63077079]
[1772080237772,2.0181866,2066.5,2065.4,2.63077079]
[1772080239769,2.0181866,2066.5,2065.6,2.49418873]
[1772080241377,2.07006989,2066.4,2065.4,2.49418873]
[1772080241677,2.07006989,2066.2,2065.4,2.49418873]
[1772080243579,2.07006989,2066.2,2065.2,2.49839558]
[1772080245781,2.07006989,2066.2,2065.3,2.49418873]
[1772080248578,2.11602153,2066.5,2065.5,1.18260428]
[1772080248773,2.11602153,2066.5,2065.5,2.49418873]
[1772080250075,2.11612013,2066.4,2065.5,2.49418873]
[1772080250277,2.11734962,2066.2,2065.5,2.49418873]
[1772080257286,7.63428344,2066.1,2065.5,2.49418873]
[1772080257487,2.08849508,2066.1,2065.5,2.49418873]
[1772080260085,2.08200835,2066.2,2065.5,2.49418873]
[1772080260292,5.54822112,2066.1,2065.5,2.49418873]
[1772080260488,6.14013,2066.5,2065.6,2.6447258]
[1772080260792,2.08956793,2066.3,2065.6,2.6447258]
[1772080260995,2.08956793,2066.1,2065.6,2.6447258]
[1772080261384,2.08712165,2066.3,2065.6,2.6447258]
[1772080261590,2.08712165,2066.5,2065.6,2.6447258]
[1772080261893,7.6291657,2066.4,2065.6,2.6447258]
[1772080262088,2.08712165,2066.4,2065.6,2.6447258]
[1772080262292,2.01971085,2067.0,2066.0,2.6447258]
[1772080262490,2.01705158,2067.4,2066.2,2.6447258]
[1772080262792,9.29160428,2067.8,2066.8,2.6447258]
[1772080262793,2.01705158,2067.8,2066.8,2.6447258]
[1772080262990,4.05056207,2068.1,2067.1,2.6447258]
[1772080262991,2.01705158,2068.1,2067.1,2.6447258]
[1772080263189,2.01705158,2068.1,2067.1,1.78862101]
[1772080263890,2.01705158,2068.1,2067.2,1.18260428]
[1772080264090,2.01705158,2068.1,2067.3,2.6447258]
[1772080264992,2.01705158,2068.1,2067.1,2.6447258]
[1772080265796,2.719471,2068.0,2066.9,2.6447258]
[1772080272398,2.719471,2068.3,2066.9,2.6447258]
[1772080272791,2.719471,2068.3,2067.1,1.76854269]
[1772080272997,2.719471,2068.3,2067.2,2.6447258]
[1772080274995,2.719471,2068.7,2067.2,2.6447258]
[1772080277506,2.719471,2068.7,2067.4,2.6447258]
[1772080277706,2.719471,2068.7,2067.6,2.6447258]
[1772080281808,2.719471,2068.7,2067.8,2.6447258]
[1772080284911,2.719471,2069.2,2067.9,2.6447258]
[1772080285116,2.719471,2069.2,2068.3,2.6447258]
[1772080285312,2.719471,2069.2,2068.5,2.6447258]
[1772080285510,2.719471,2069.5,2068.5,2.6447258]
[1772080287614,2.719471,2069.5,2068.4,9.47716447]
[1772080287917,2.719471,2069.5,2068.3,2.61506763]
[1772080288908,2.47689205,2069.5,2068.3,2.61506763]
[1772080291416,2.47689205,2069.3,2068.3,2.61506763]
[1772080292919,2.4971165,2069.2,2068.3,0.00390316]
[1772080294320,2.4971165,2069.0,2067.9,2.50884512]
[1772080294917,2.4971165,2069.0,2067.7,2.50884512]
[1772080295319,2.4971165,2069.0,2067.7,2.51430392]
[1772080295516,2.4971165,2068.8,2067.7,2.51430392]
[1772080303219,2.4971165,2068.8,2067.9,1.17811033]
[1772080303628,2.4971165,2068.8,2068.0,2.50884512]
[1772080308124,2.37560494,2069.2,2068.7,2.50884512]
[1772080308928,0.00390316,2069.2,2068.7,2.50884512]
[1772080309226,2.36902373,2069.5,2068.7,2.50884512]
[1772080311227,2.38153336,2069.3,2068.0,2.50884512]
[1772080311424,2.38062638,2069.5,2068.0,2.50884512]
[1772080311620,2.38062638,2069.1,2068.2,2.50884512]
[1772080312329,2.47162603,2068.9,2068.2,2.50884512]
[1772080312833,2.47162603,2068.9,2067.8,2.50884512]
[1772080313125,2.47056673,2068.7,2067.8,2.50884512]
[1772080315627,2.47405452,2068.5,2067.7,0.0054588]
[1772080315929,2.47405452,2068.5,2067.7,2.67614164]
[1772080317728,2.47405452,2068.5,2067.7,0.0054588]
[1772080318422,2.47405452,2068.5,2067.8,2.67068284]
[1772080318823,2.45939915,2068.8,2067.8,2.67068284]
[1772080319029,2.45939915,2068.7,2067.8,2.67068284]
[1772080321030,67.08410019,2069.1,2067.7,0.0054588]
[1772080321031,2.39549629,2068.5,2067.7,0.0054588]
[1772080321233,2.39549629,2068.5,2067.7,2.67614164]
[1772080321634,2.39432036,2068.3,2067.7,2.67614164]
[1772080323832,6.07584311,2068.8,2067.7,2.67614164]
[1772080323833,2.39251346,2068.8,2067.7,2.67614164]
[1772080324030,2.39251346,2069.3,2068.1,2.67068284]
[1772080324234,5.4641865,2069.2,2068.1,2.67068284]
[1772080324440,2.39251346,2069.3,2068.1,2.67068284]
[1772080324837,2.38300828,2069.5,2068.3,2.67068284]
[1772080325344,9.60228408,2070.3,2068.3,2.67068284]
[1772080325345,4.05056207,2070.3,2068.8,1.76598019]
[1772080325534,2.52796626,2070.4,2069.0,2.67068284]
[1772080325841,2.52796626,2070.2,2069.0,2.67068284]
[1772080326338,3.41295308,2070.6,2069.0,2.67068284]
[1772080326543,2.52796626,2070.5,2069.2,2.67068284]
[1772080326734,2.52796626,2070.5,2069.2,2.67615883]
[1772080330235,2.52796626,2070.7,2069.2,2.67615883]
[1772080330436,2.52796626,2070.7,2069.4,2.67068284]
[1772080330638,2.52796626,2071.2,2069.8,2.67068284]
[1772080330838,2.52796626,2072.7,2070.8,2.67068284]
[1772080331037,0.24119,2073.0,2070.8,2.67068284]
[1772080331038,2.52796626,2073.0,2071.4,2.67068284]
[1772080331439,2.52796626,2073.0,2071.6,2.67068284]
[1772080331639,2.52796626,2072.8,2071.8,2.67068284]
[1772080331841,2.52796626,2072.6,2071.4,2.67068284]
[1772080332245,2.52796626,2072.4,2071.4,2.67068284]
[1772080332740,4.94316626,2072.4,2071.4,2.67068284]
[1772080333247,2.52796626,2072.4,2071.4,2.67068284]
[1772080333445,4.94316626,2072.3,2071.4,2.67068284]
[1772080333747,2.52796626,2072.3,2071.4,2.67068284]
[1772080333943,2.52796626,2072.4,2071.4,2.67068284]
[1772080334141,2.52796626,2072.8,2071.4,2.67068284]
[1772080334337,2.52796626,2072.7,2071.6,2.67068284]
[1772080334744,3.73330303,2073.1,2071.8,2.67068284]
[1772080335146,1.20533677,2073.1,2072.0,2.67068284]
[1772080335342,1.13213047,2073.1,2072.3,2.67068284]
[1772080335547,2.52796626,2074.7,2072.7,2.67068284]
[1772080335745,14.07044,2075.1,2072.6,5.93435]
[1772080335746,2.52796626,2074.9,2073.3,2.67068284]
[1772080335946,2.52796626,2074.7,2073.4,2.67068284]
[1772080336140,2.52796626,2074.5,2073.2,2.67068284]
[1772080336449,2.52796626,2074.8,2073.6,2.67068284]
[1772080336644,2.52796626,2074.1,2073.3,5.47342049]
[1772080336950,2.52796626,2073.7,2072.5,2.67068284]
[1772080337347,5.92853,2074.7,2072.5,2.67068284]
[1772080337348,2.52796626,2074.7,2072.7,2.67068284]
[1772080337744,2.52796626,2074.7,2073.2,2.67068284]
[1772080337944,2.52796626,2075.0,2073.4,2.67068284]
[1772080338149,2.52796626,2075.0,2073.5,2.67068284]
[1772080338346,10.5992,2075.3,2073.5,2.67068284]
[1772080338347,2.52796626,2074.8,2073.6,2.67068284]
[1772080338543,2.52796626,2074.7,2073.4,2.67068284]
[1772080339054,2.52796626,2074.0,2073.1,2.67068284]
[1772080339247,2.52796626,2075.0,2073.6,2.67068284]
[1772080339549,2.52796626,2074.8,2073.6,2.67068284]
[1772080339747,5.9273,2075.1,2073.3,2.67068284]
[1772080339748,2.52796626,2074.2,2073.3,2.67068284]
[1772080339951,2.52796626,2074.4,2073.3,2.67068284]
[1772080340349,2.52796626,2074.9,2073.3,2.67068284]
[1772080340546,2.52796626,2074.9,2073.5,2.67068284]
[1772080340850,2.52796626,2074.7,2073.5,2.67068284]
[1772080341047,2.52796626,2074.5,2073.3,2.67068284]
[1772080341351,2.52796626,2074.3,2073.3,2.67068284]
[1772080341552,2.52796626,2074.0,2072.8,2.67068284]
[1772080341946,2.52796626,2073.7,2072.8,2.67068284]
[1772080342145,2.52796626,2074.2,2072.8,2.67068284]
[1772080342549,2.52796626,2073.8,2072.8,2.67068284]
[1772080342951,2.4152,2073.7,2072.8,2.67068284]
[1772080344252,2.52796626,2073.8,2072.8,2.67068284]
[1772080344754,0.24104,2074.3,2072.8,2.67068284]
[1772080344755,2.52796626,2073.7,2072.8,2.67068284]
[1772080345156,10.76096626,2074.0,2072.5,2.67068284]
[1772080345359,2.52796626,2073.9,2072.5,2.67068284]
[1772080345655,2.52796626,2073.9,2072.6,2.67068284]
[1772080346858,2.52796626,2073.9,2072.8,2.66768787]
[1772080347049,40.8,2074.4,2072.8,2.66768787]
[1772080347050,2.54784679,2074.4,2072.8,2.66768787]
[1772080347256,2.54784679,2074.4,2073.0,2.66768787]
[1772080347456,2.54784679,2074.4,2073.2,2.66768787]
[1772080347657,40.8,2074.9,2073.2,2.66768787]
[1772080347658,2.54784679,2074.8,2073.2,2.66768787]
[1772080347963,2.54784679,2074.8,2073.4,2.66768787]
[1772080349359,2.54784679,2075.0,2073.6,2.66768787]
[1772080349761,2.54784679,2075.0,2073.8,2.66768787]
[1772080349956,40.8,2075.4,2074.0,2.66768787]
[1772080350158,2.54784679,2075.1,2074.0,2.66768787]
[1772080350556,2.4152,2074.7,2074.0,2.66768787]
[1772080350757,2.54784679,2074.8,2074.0,2.66768787]
[1772080350951,2.54784679,2075.3,2074.0,2.66768787]
[1772080351156,2.54784679,2075.1,2074.0,2.66768787]
[1772080351559,4.96304679,2074.8,2074.0,2.66768787]
[1772080351856,2.54784679,2074.8,2074.0,2.66768787]
[1772080352062,4.96304679,2074.8,2074.0,2.66768787]
[1772080352261,2.54784679,2074.8,2074.0,2.66768787]
[1772080352761,2.4152,2074.7,2074.0,2.66768787]
[1772080353154,2.69692888,2075.2,2074.0,2.66768787]
[1772080353558,2.69692888,2075.8,2074.2,2.51659698]
[1772080353754,2.69692888,2076.3,2074.3,2.51659698]
[1772080353955,2.69692888,2076.1,2074.5,2.51659698]
[1772080354257,2.69692888,2075.9,2074.7,2.51659698]
[1772080354664,2.69692888,2076.1,2074.9,2.51659698]
[1772080355656,2.69692888,2075.8,2074.5,2.51659698]
[1772080355961,2.69692888,2075.9,2074.7,2.51659698]
[1772080356760,2.69692888,2075.7,2074.4,2.51659698]
[1772080358062,2.69692888,2075.7,2073.9,2.51659698]
[1772080358558,2.69692888,2075.6,2073.9,2.51659698]
[1772080358762,2.69692888,2075.4,2073.9,2.51659698]
[1772080358964,2.69692888,2075.4,2074.1,2.51659698]
[1772080360570,2.69692888,2075.4,2074.3,2.51659698]
[1772080361774,2.69692888,2075.6,2074.5,2.51659698]
[1772080363170,2.69692888,2076.4,2074.8,2.75756698]
[1772080363369,2.69692888,2076.4,2074.8,8.68563698]
[1772080363674,2.69692888,2076.4,2075.0,2.51659698]
[1772080364675,2.69692888,2076.4,2075.2,2.51659698]
[1772080365077,2.69692888,2076.4,2075.4,2.51659698]
[1772080365277,2.69692888,2076.4,2075.4,2.52132434]
[1772080365575,2.69692888,2076.4,2075.4,0.00472736]
[1772080366772,2.69692888,2076.2,2075.0,2.51659698]
[1772080367174,0.2408,2076.3,2074.3,2.51659698]
[1772080367175,2.69692888,2076.0,2074.3,2.51659698]
[1772080367773,2.69692888,2075.8,2074.3,2.52159296]
[1772080367973,2.69692888,2075.6,2074.3,2.52159296]
[1772080368875,2.69692888,2075.4,2074.3,0.00499598]
[1772080369074,2.69692888,2075.4,2074.3,2.52159296]
[1772080369574,2.69692888,2075.4,2074.3,0.00499598]
[1772080371081,2.69692888,2075.2,2074.3,0.00499598]
[1772080373486,2.69692888,2076.2,2075.1,2.51659698]
[1772080374878,2.69692888,2076.1,2075.1,2.51659698]
[1772080375678,2.69692888,2076.0,2075.1,2.51659698]
[1772080376081,2.72455744,2075.9,2075.1,2.51659698]
[1772080377185,2.72455744,2076.3,2075.1,2.51659698]
[1772080377484,2.72455744,2076.2,2075.1,2.51659698]
[1772080380778,2.72455744,2076.1,2075.1,2.51659698]
[1772080381286,2.72455744,2075.9,2075.1,2.51659698]
[1772080381485,2.72455744,2075.9,2074.8,2.57216617]
[1772080381982,2.72455744,2075.7,2074.4,2.57216617]
[1772080382283,2.72455744,2075.6,2074.4,2.57216617]
[1772080382485,2.72455744,2075.4,2074.4,2.57216617]
[1772080382686,2.72455744,2075.4,2074.3,0.00499598]
[1772080382888,2.72455744,2075.1,2074.3,0.00499598]
[1772080383385,2.72455744,2074.7,2074.0,2.57216617]
[1772080383983,2.72455744,2074.6,2074.0,2.57216617]
[1772080384287,2.72455744,2074.1,2074.0,0.00519263]
[1772080384481,2.72455744,2074.0,2072.8,2.57216617]
[1772080384882,2.72455744,2073.8,2072.8,2.57216617]
[1772080385080,2.72455744,2073.8,2072.9,5.93174684]
[1772080385282,2.72455744,2073.5,2072.9,5.93174684]
[1772080385490,2.72455744,2073.5,2072.9,5.93789878]
[1772080385693,2.72455744,2074.2,2073.1,2.57216617]
[1772080386086,2.72455744,2073.9,2073.2,5.93174684]
[1772080386290,2.72455744,2073.9,2073.0,5.93174684]
[1772080386685,2.72455744,2073.7,2072.9,0.00615194]
[1772080386885,2.72455744,2073.7,2073.0,5.93174684]
[1772080387087,2.72455744,2073.4,2072.3,2.57216617]
[1772080387587,2.72455744,2073.1,2072.3,2.57216617]
[1772080387988,2.72455744,2073.1,2071.6,2.57216617]
[1772080388188,2.72455744,2073.1,2071.6,2.57569664]
[1772080388189,2.73047258,2073.1,2071.6,2.57569664]
[1772080388389,2.73047258,2073.1,2071.7,2.57216617]
[1772080389099,2.72455744,2072.9,2071.7,2.57216617]
[1772080389291,0.00591514,2073.1,2071.7,8.50906617]
[1772080389487,0.00591514,2073.1,2071.6,0.00353047]
[1772080389488,0.00591514,2073.1,2071.9,2.57216617]
[1772080389693,2.73047258,2073.1,2071.9,2.57216617]
[1772080390191,2.72455744,2074.2,2072.6,2.57216617]
[1772080390594,2.72455744,2074.1,2072.6,2.57216617]
[1772080390997,2.72455744,2073.7,2072.6,2.57216617]
[1772080391193,2.72945978,2073.7,2072.6,2.57216617]
[1772080391698,2.72455744,2073.4,2072.6,2.57216617]
[1772080392598,2.4096,2073.3,2072.6,2.57216617]
[1772080392998,2.4096,2073.2,2072.6,2.57216617]
[1772080393199,2.72455744,2073.4,2072.6,2.57216617]
[1772080393498,2.4096,2073.3,2072.6,2.57216617]
[1772080393793,2.72455744,2073.2,2071.9,2.57216617]
[1772080394600,2.72455744,2073.0,2071.9,2.57216617]
[1772080394994,5.13415744,2072.7,2071.9,2.57216617]
[1772080395199,2.72455744,2072.7,2071.9,2.57216617]
[1772080395497,1.7594645,2073.4,2071.9,2.57216617]
[1772080395498,2.72455744,2073.3,2071.9,2.57216617]
[1772080395694,2.72455744,2073.2,2071.9,2.57216617]
[1772080396197,2.72455744,2073.0,2071.9,2.57216617]
[1772080396701,2.72455744,2073.5,2071.9,2.57216617]
[1772080396901,2.72455744,2073.4,2071.9,2.57216617]
[1772080397702,2.72455744,2073.3,2071.9,2.57216617]
[1772080398395,2.72455744,2073.6,2072.1,2.57216617]
[1772080398803,2.72455744,2073.5,2072.3,2.57216617]
[1772080399392,2.72455744,2073.1,2072.3,2.57216617]
[1772080399999,2.4096,2073.0,2072.3,2.57216617]
[1772080400395,2.4096,2072.9,2072.3,2.57216617]
[1772080400593,2.72455744,2073.1,2072.3,2.57216617]
[1772080401003,2.72455744,2073.0,2072.3,2.57216617]